bitfinex/quotes_BTCUSD_20210402
["timestamp","ask_amount","ask_price","bid_price","bid_amount"]
[1617340510666,0.085,59526.0,59525.0,0.916717]
[1617340511064,0.01754163,59530.0,59525.0,0.916717]
[1617340511282,0.01754163,59530.0,59528.0,0.03]
[1617340511481,0.01754163,59530.0,59528.0,0.52924]
[1617340511684,1.28508389,59529.0,59528.0,0.52924]
[1617340511880,0.23508389,59529.0,59528.0,0.52924]
[1617340512084,0.28508389,59529.0,59528.0,0.52924]
[1617340512285,0.08508389,59529.0,59528.0,0.52924]
[1617340512481,0.03508389,59529.0,59528.0,0.52924]
[1617340512681,0.87508389,59529.0,59528.0,0.52924]
[1617340513084,0.08508389,59529.0,59528.0,0.52924]
[1617340513283,0.03508389,59529.0,59528.0,0.52924]
[1617340513485,0.07008389,59529.0,59528.0,0.52924]
[1617340514510,0.07008389,59529.0,59528.0,0.886717]
[1617340514711,0.65008389,59529.0,59528.0,0.49924]
[1617340515109,0.12008389,59529.0,59528.0,0.49924]
[1617340515310,0.12008389,59529.0,59528.0,0.51317339]
[1617340515511,0.07008389,59529.0,59528.0,0.51317339]
[1617340515710,0.07008389,59529.0,59528.0,0.54317339]
[1617340515913,0.12008389,59529.0,59528.0,0.54317339]
[1617340516314,0.07008389,59529.0,59528.0,0.54317339]
[1617340516537,0.17008389,59529.0,59528.0,0.54317339]
[1617340516740,0.59008389,59529.0,59528.0,0.54317339]
[1617340516940,0.07008389,59529.0,59528.0,0.54317339]
[1617340517337,0.07008389,59529.0,59528.0,0.93065039]
[1617340518337,0.06508389,59529.0,59528.0,0.93065039]
[1617340518739,0.035,59529.0,59528.0,0.93065039]
[1617340519156,0.035,59529.0,59528.0,1.19565039]
[1617340519960,0.035,59529.0,59528.0,1.16565039]
[1617340520160,0.035,59529.0,59528.0,1.16065039]
[1617340520761,0.03790603,59529.0,59528.0,1.16065039]
[1617340521163,0.03790603,59529.0,59528.0,1.19065039]
[1617340521807,0.00290603,59529.0,59528.0,1.19065039]
[1617340522461,0.035,59538.0,59528.0,0.92565039]
[1617340522662,0.392277,59537.0,59528.0,0.53817339]
[1617340522860,0.035,59536.0,59528.0,0.53817339]
[1617340523061,0.0029054,59529.0,59528.0,0.53817339]
[1617340523262,0.03308117,59535.0,59528.0,0.92565039]
[1617340523464,0.0029056,59529.0,59528.0,0.53817339]
[1617340523660,0.0029056,59529.0,59528.0,0.92565039]
[1617340523864,0.03308117,59535.0,59528.0,0.92565039]
[1617340524163,0.035,59536.0,59534.0,0.03]
[1617340524412,0.387477,59535.0,59534.0,0.52424]
[1617340524561,0.085,59535.0,59534.0,0.52424]
[1617340524765,0.075,59535.0,59534.0,0.49424]
[1617340524965,0.075,59535.0,59534.0,0.48924]
[1617340525166,0.035,59535.0,59534.0,0.48924]
[1617340525363,0.422477,59535.0,59534.0,0.48924]
[1617340525562,0.607477,59535.0,59534.0,0.48924]
[1617340525961,0.607477,59535.0,59534.0,0.51924]
[1617340526161,0.657477,59535.0,59534.0,0.51924]
[1617340526567,0.27,59535.0,59534.0,0.51924]
[1617340526964,0.657477,59535.0,59534.0,0.51924]
[1617340527564,0.657477,59535.0,59534.0,0.48924]
[1617340529166,0.27,59535.0,59534.0,0.48924]
[1617340529367,0.657477,59535.0,59534.0,0.48924]
[1617340529965,0.265,59535.0,59534.0,0.48924]
[1617340530367,0.652477,59535.0,59534.0,0.48924]
[1617340530968,0.816477,59535.0,59534.0,0.48924]
[1617340531370,0.652477,59535.0,59534.0,0.48924]
[1617340533991,0.265,59535.0,59534.0,0.48924]
[1617340534192,0.265,59535.0,59534.0,0.51924]
[1617340535616,0.652477,59535.0,59534.0,0.48924]
[1617340535816,1.687477,59535.0,59528.0,0.252194]
[1617340536024,1.687477,59535.0,59512.0,0.03]
[1617340536025,0.155,59520.0,59512.0,0.03]
[1617340536229,1.0630004,59513.0,59510.0,0.03]
[1617340536428,1.0630004,59513.0,59510.0,0.50412]
[1617340536429,1.371477,59511.0,59510.0,0.50412]
[1617340536628,2.68556371,59511.0,59510.0,0.44412]
[1617340536824,2.53464224,59511.0,59510.0,0.41769399]
[1617340537109,3.56864224,59511.0,59510.0,0.08118999]
[1617340537309,0.995,59510.0,59491.0,0.03]
[1617340537553,0.06730024,59501.0,59491.0,0.03]
[1617340537756,0.391458,59499.0,59491.0,0.50428]
[1617340537952,1.61970898,59498.0,59491.0,0.50428]
[1617340538162,0.1602,59495.0,59491.0,0.50428]
[1617340538354,0.37949294,59493.0,59491.0,0.50428]
[1617340538556,0.035,59492.0,59491.0,0.50428]
[1617340538953,0.11245675,59492.0,59491.0,0.50428]
[1617340540171,0.11245675,59492.0,59491.0,0.53428]
[1617340540776,0.11245675,59492.0,59491.0,0.72608882]
[1617340540968,0.11245675,59492.0,59491.0,1.12752505]
[1617340541166,0.11245675,59492.0,59491.0,0.93571623]
[1617340541373,0.11245675,59492.0,59491.0,0.90571623]
[1617340541374,0.053,59492.0,59491.0,0.90571623]
[1617340541565,0.018,59492.0,59491.0,0.90571623]
[1617340541771,0.053,59492.0,59491.0,0.90571623]
[1617340542569,0.053,59492.0,59491.0,0.93571623]
[1617340544202,0.035,59492.0,59491.0,0.98571623]
[1617340544404,0.035,59492.0,59491.0,4.68597623]
[1617340544603,0.035,59492.0,59491.0,4.98097623]
[1617340544796,0.00289555,59497.0,59492.0,0.045]
[1617340545003,0.00289637,59498.0,59496.0,3.4545659]
[1617340545200,0.035,59507.0,59497.0,3.45]
[1617340545415,0.035,59507.0,59505.0,0.387458]
[1617340545614,0.035,59507.0,59506.0,2.52]
[1617340545814,0.035,59507.0,59506.0,1.79428]
[1617340546211,0.035,59507.0,59506.0,2.26468]
[1617340546413,0.041,59507.0,59506.0,2.14428]
[1617340546611,0.041,59507.0,59506.0,1.01863969]
[1617340546817,0.041,59507.0,59506.0,0.89823969]
[1617340547812,0.006,59507.0,59506.0,0.89823969]
[1617340548241,0.035,59515.0,59506.0,0.94823969]
[1617340548439,0.795,59515.0,59514.0,0.03]
[1617340548643,0.035,59515.0,59514.0,0.53428]
[1617340548839,0.041,59515.0,59514.0,0.921704]
[1617340549638,0.035,59515.0,59514.0,0.921704]
[1617340550037,0.041,59515.0,59514.0,0.921704]
[1617340550869,0.006,59515.0,59514.0,0.921704]
[1617340551271,0.006,59520.0,59514.0,0.53428]
[1617340551469,0.006,59520.0,59517.0,0.03]
[1617340551672,0.006,59520.0,59514.0,0.50428]
[1617340551874,0.006,59520.0,59517.0,0.50428]
[1617340552139,0.006,59520.0,59518.0,0.51822534]
[1617340552744,0.81807253,59519.0,59518.0,0.51822534]
[1617340552943,1.40549653,59519.0,59518.0,0.51822534]
[1617340553340,0.80521816,59519.0,59518.0,0.51822534]
[1617340553540,0.74714563,59519.0,59518.0,0.51822534]
[1617340553743,0.2,59519.0,59518.0,0.51822534]
[1617340553946,0.2,59519.0,59518.0,0.93564934]
[1617340554145,0.035,59519.0,59518.0,0.93564934]
[1617340554541,0.09306881,59519.0,59518.0,0.93564934]
[1617340554947,0.035,59519.0,59518.0,0.51822534]
[1617340555344,0.422424,59519.0,59518.0,0.51822534]
[1617340555543,0.035,59519.0,59518.0,0.51822534]
[1617340555943,0.09307845,59519.0,59518.0,0.90564934]
[1617340556142,0.05807845,59519.0,59518.0,0.93564934]
[1617340556340,0.85307845,59519.0,59518.0,0.86020899]
[1617340556545,0.09307845,59519.0,59518.0,0.47278499]
[1617340557340,0.48050245,59519.0,59518.0,0.43778499]
[1617340557542,0.035,59519.0,59518.0,0.44527518]
[1617340557743,0.09307978,59519.0,59518.0,0.83269918]
[1617340557944,0.035,59519.0,59518.0,0.83269918]
[1617340558341,0.035,59519.0,59518.0,0.86269918]
[1617340558542,0.035,59519.0,59518.0,1.16766918]
[1617340558941,0.035,59519.0,59518.0,1.34266918]
[1617340559143,0.035,59519.0,59518.0,1.16766918]
[1617340559341,0.035,59520.0,59519.0,0.105657]
[1617340559544,0.005,59520.0,59519.0,0.53844199]
[1617340559750,0.005,59520.0,59519.0,0.43278499]
[1617340559751,0.81806573,59520.0,59519.0,0.43278499]
[1617340559946,0.76,59520.0,59519.0,0.43278499]
[1617340560146,0.1551389,59522.0,59519.0,0.43278499]
[1617340560349,0.15516631,59523.0,59519.0,0.43278499]
[1617340560744,0.15516631,59523.0,59520.0,0.387424]
[1617340560943,0.15516631,59523.0,59522.0,0.03]
[1617340561177,0.15522202,59524.0,59522.0,0.46278499]
[1617340561984,0.15522202,59524.0,59523.0,3.72566896]
[1617340562189,0.0588974,59529.0,59523.0,3.72566896]
[1617340562190,0.0588974,59529.0,59524.0,3.2904]
[1617340562387,0.70712512,59535.0,59528.0,3.426002]
[1617340562584,0.70712512,59535.0,59534.0,3.24077613]
[1617340562789,0.70712512,59535.0,59534.0,3.51676213]
[1617340562981,2.512e-05,59535.0,59534.0,4.48845712]
[1617340563174,2.512e-05,59535.0,59534.0,4.53845712]
[1617340563378,2.512e-05,59535.0,59534.0,5.31415476]
[1617340563579,0.02,59539.0,59535.0,3.12]
[1617340563801,0.02,59539.0,59538.0,3.707719]
[1617340564000,0.02,59539.0,59538.0,4.74047399]
[1617340564200,0.06116808,59569.0,59539.0,3.2404]
[1617340564409,0.167,59570.0,59567.0,0.15081345]
[1617340564410,1.147424,59568.0,59567.0,0.15081345]
[1617340564605,1.147424,59568.0,59567.0,0.45755345]
[1617340564606,0.387424,59568.0,59567.0,0.45755345]
[1617340564801,0.387424,59568.0,59567.0,0.6922636]
[1617340565000,0.387424,59568.0,59567.0,0.8322636]
[1617340565401,0.16,59571.0,59567.0,0.8322636]
[1617340566010,0.15,59572.0,59567.0,0.8322636]
[1617340566211,0.167,59577.0,59568.0,0.387424]
[1617340566416,0.16,59578.0,59567.0,0.6922636]
[1617340566617,0.387424,59576.0,59567.0,0.6922636]
[1617340566818,0.16,59578.0,59569.0,0.03]
[1617340567018,0.16,59578.0,59569.0,0.46278499]
[1617340567297,0.995,59580.0,59569.0,0.46278499]
[1617340567494,0.995,59580.0,59570.0,0.43278499]
[1617340567495,0.2,59579.0,59570.0,0.43278499]
[1617340567697,0.915,59571.0,59570.0,0.43278499]
[1617340567898,1.537424,59571.0,59570.0,0.43278499]
[1617340568092,0.004,59573.0,59570.0,0.43278499]
[1617340568296,0.308078,59572.0,59570.0,0.43278499]
[1617340568491,0.056,59572.0,59571.0,0.387424]
[1617340568690,0.056,59572.0,59571.0,0.39807576]
[1617340568890,1.795,59572.0,59571.0,0.83086075]
[1617340569088,0.04,59572.0,59571.0,0.44343675]
[1617340569489,0.096,59572.0,59571.0,0.44343675]
[1617340569695,0.341,59572.0,59571.0,0.44343675]
[1617340569890,0.096,59572.0,59571.0,0.44343675]
[1617340572298,0.056,59572.0,59571.0,0.83086075]
[1617340572495,0.0046,59581.0,59571.0,0.44343675]
[1617340572697,0.00194174,59572.0,59571.0,0.44343675]
[1617340572895,0.04,59572.0,59571.0,0.83086075]
[1617340573093,0.095,59572.0,59571.0,0.83086075]
[1617340573296,0.095,59572.0,59571.0,0.98086075]
[1617340573507,0.00194235,59574.0,59571.0,0.98086075]
[1617340573704,0.019,59573.0,59572.0,0.62249671]
[1617340573897,0.019,59573.0,59572.0,0.72763771]
[1617340574100,0.00194373,59577.0,59572.0,3.45803771]
[1617340574295,0.00194373,59577.0,59576.0,1.6]
[1617340574496,0.0359033,59584.0,59576.0,1.6]
[1617340574497,0.00194419,59578.0,59576.0,1.987404]
[1617340574696,0.00194462,59579.0,59577.0,0.100129]
[1617340574900,0.00194462,59579.0,59578.0,0.11362994]
[1617340575093,0.00194462,59579.0,59578.0,0.50101994]
[1617340575297,0.0359033,59584.0,59579.0,0.100142]
[1617340575496,0.0359033,59584.0,59578.0,0.54641493]
[1617340575704,0.0359033,59584.0,59579.0,0.43278499]
[1617340577317,0.0359033,59584.0,59580.0,0.82009199]
[1617340577721,0.0359033,59584.0,59581.0,0.19]
[1617340577917,0.0359033,59584.0,59581.0,0.62278499]
[1617340578120,0.0359033,59584.0,59581.0,0.43278499]
[1617340578517,0.0359033,59584.0,59581.0,0.42778499]
[1617340579551,0.0359033,59584.0,59581.0,0.42278499]
[1617340579948,0.0359033,59584.0,59582.0,0.01063731]
[1617340580150,0.0359033,59584.0,59582.0,0.4334223]
[1617340580347,0.0059033,59584.0,59582.0,0.4334223]
[1617340580754,0.0059033,59584.0,59582.0,0.4359223]
[1617340580755,1.0009033,59584.0,59582.0,0.4359223]
[1617340580954,2.132307,59583.0,59582.0,0.4359223]
[1617340581154,2.667307,59583.0,59582.0,0.4359223]
[1617340581349,2.717307,59583.0,59582.0,0.4359223]
[1617340581561,3.202467,59583.0,59582.0,0.4359223]
[1617340581757,3.752467,59583.0,59582.0,0.3459073]
[1617340582474,0.995,59570.0,59554.0,0.03]
[1617340582691,0.995,59570.0,59524.0,0.24027455]
[1617340582692,0.008761,59553.0,59546.0,0.03]
[1617340582889,0.008761,59553.0,59524.0,0.1339493]
[1617340582890,0.158,59547.0,59524.0,0.1339493]
[1617340583087,0.252234,59539.0,59531.0,0.80367515]
[1617340583291,0.005,59537.0,59519.0,0.03]
[1617340583481,0.005,59529.0,59519.0,0.67205]
[1617340583674,0.005,59529.0,59520.0,0.387307]
[1617340583876,0.005,59529.0,59520.0,0.891347]
[1617340584675,0.257234,59529.0,59520.0,0.891347]
[1617340585325,0.06155,59530.0,59521.0,0.135]
[1617340585520,0.004,59532.0,59522.0,0.100763]
[1617340585716,0.004,59532.0,59522.0,0.604803]
[1617340586125,0.004,59532.0,59523.0,0.03]
[1617340586324,0.252229,59527.0,59523.0,0.03]
[1617340586525,0.252229,59527.0,59523.0,0.50404]
[1617340586922,0.561439,59527.0,59523.0,0.50404]
[1617340588324,0.561439,59527.0,59523.0,0.2284803]
[1617340588525,0.995,59526.0,59523.0,0.2284803]
[1617340588732,0.918,59524.0,59523.0,0.2284803]
[1617340588925,1.147307,59524.0,59523.0,0.2284803]
[1617340589129,1.197307,59524.0,59523.0,0.2284803]
[1617340589323,2.192307,59524.0,59523.0,0.2284803]
[1617340589724,2.642307,59524.0,59523.0,0.2284803]
[1617340589925,1.642307,59524.0,59523.0,0.2284803]
[1617340590747,1.978666,59524.0,59523.0,0.2284803]
[1617340590945,1.978666,59524.0,59523.0,0.23596986]
[1617340592547,2.278666,59524.0,59523.0,0.23596986]
[1617340592966,3.273666,59524.0,59523.0,0.23596986]
[1617340593174,3.473666,59524.0,59523.0,0.23596986]
[1617340593570,3.173666,59524.0,59523.0,0.23596986]
[1617340593768,2.178666,59524.0,59523.0,0.23596986]
[1617340593967,3.173666,59524.0,59523.0,0.23596986]
[1617340594972,3.423666,59524.0,59523.0,0.23596986]
[1617340595397,3.508666,59524.0,59523.0,0.23596986]
[1617340596197,3.558666,59524.0,59523.0,0.23596986]
[1617340596799,2.563666,59524.0,59523.0,0.23596986]
[1617340596997,3.518666,59524.0,59523.0,0.23596986]
[1617340597271,3.558666,59524.0,59523.0,0.23596986]
[1617340597574,3.063666,59524.0,59523.0,0.23596986]
[1617340597773,3.00023571,59524.0,59523.0,0.23596986]
[1617340597974,2.678666,59524.0,59523.0,0.23596986]
[1617340598176,2.518666,59524.0,59523.0,0.23596986]
[1617340598983,3.592666,59524.0,59523.0,0.23596986]
[1617340599575,3.642666,59524.0,59523.0,0.23596986]
[1617340599774,3.774246,59524.0,59523.0,0.23596986]
[1617340600172,3.774246,59524.0,59523.0,0.26096986]
[1617340601173,4.064246,59524.0,59523.0,0.26096986]
[1617340601381,4.38581571,59524.0,59523.0,0.26096986]
[1617340601575,3.39081571,59524.0,59523.0,0.26096986]
[1617340601780,4.38581571,59524.0,59523.0,0.26096986]
[1617340601974,4.13581571,59524.0,59523.0,0.26096986]
[1617340602173,3.14081571,59524.0,59523.0,0.26096986]
[1617340602579,3.14081571,59524.0,59523.0,0.25996986]
[1617340602777,3.09423571,59524.0,59523.0,0.25996986]
[1617340603375,2.93023571,59524.0,59523.0,0.25996986]
[1617340603579,1.848666,59524.0,59523.0,0.25996986]
[1617340603786,1.421359,59524.0,59523.0,0.25996986]
[1617340603986,0.971359,59524.0,59523.0,0.25996986]
[1617340604182,0.921359,59524.0,59523.0,0.25996986]
[1617340604380,0.085,59524.0,59523.0,0.25996986]
[1617340605182,0.337257,59524.0,59523.0,0.25996986]
[1617340605379,0.252257,59524.0,59523.0,0.25996986]
[1617340606199,0.46617761,59524.0,59523.0,0.25996986]
[1617340606398,0.814564,59524.0,59523.0,0.25996986]
[1617340606793,0.427257,59524.0,59523.0,0.25996986]
[1617340607596,1.187257,59524.0,59523.0,0.25996986]
[1617340607995,0.477257,59524.0,59523.0,0.25996986]
[1617340608623,1.237257,59524.0,59523.0,0.25316986]
[1617340609622,1.780564,59524.0,59523.0,0.20122467]
[1617340610725,1.83897173,59524.0,59523.0,0.20122467]
[1617340612412,1.780564,59524.0,59523.0,0.20122467]
[1617340613013,0.864564,59524.0,59523.0,0.20122467]
[1617340613221,0.53566951,59524.0,59523.0,0.20122467]
[1617340613619,0.48566951,59524.0,59523.0,0.20122467]
[1617340613820,0.427257,59524.0,59523.0,0.20122467]
[1617340615417,0.477257,59524.0,59523.0,0.20122467]
[1617340616017,1.624564,59524.0,59523.0,0.18618627]
[1617340616424,1.73374441,59524.0,59523.0,0.18618627]
[1617340616627,1.88674441,59524.0,59523.0,0.18618627]
[1617340616827,2.17674441,59524.0,59523.0,0.18618627]
[1617340617422,2.67674441,59524.0,59523.0,0.18618627]
[1617340618023,2.97674441,59524.0,59523.0,0.18618627]
[1617340618220,2.67674441,59524.0,59523.0,0.18618627]
[1617340619826,1.91674441,59524.0,59523.0,0.18618627]
[1617340622053,1.76374441,59524.0,59523.0,0.18618627]
[1617340622257,1.72374441,59524.0,59523.0,0.18618627]
[1617340622455,1.47374441,59524.0,59523.0,0.18618627]
[1617340622857,0.97374441,59524.0,59523.0,0.18618627]
[1617340623057,0.864564,59524.0,59523.0,0.18618627]
[1617340623656,2.24049431,59524.0,59520.0,0.46583989]
[1617340623862,0.657307,59523.0,59520.0,0.46583989]
[1617340624060,0.79733032,59523.0,59520.0,0.96986989]
[1617340624285,1.17745064,59521.0,59520.0,0.96986989]
[1617340624680,1.33845064,59521.0,59520.0,0.91998289]
[1617340625079,1.70345064,59521.0,59520.0,0.91998289]
[1617340625283,1.8131919,59521.0,59520.0,0.91998289]
[1617340625687,1.6521919,59521.0,59520.0,0.91998289]
[1617340626680,2.1521919,59521.0,59520.0,0.91998289]
[1617340627345,2.3181919,59521.0,59520.0,0.91998289]
[1617340627946,1.5581919,59521.0,59520.0,0.91998289]
[1617340629349,2.1781919,59521.0,59520.0,0.91998289]
[1617340629950,2.3431919,59521.0,59520.0,0.91998289]
[1617340630151,1.7231919,59521.0,59520.0,0.91998289]
[1617340630354,1.5581919,59521.0,59520.0,0.91998289]
[1617340631351,2.3181919,59521.0,59520.0,0.91998289]
[1617340631755,2.4781919,59521.0,59520.0,0.91998289]
[1617340632364,3.11813564,59521.0,59520.0,0.91998289]
[1617340632556,3.03976161,59521.0,59520.0,0.91998289]
[1617340632758,2.7181919,59521.0,59520.0,0.91998289]
[1617340633760,1.7981919,59521.0,59520.0,0.91998289]
[1617340633961,1.7181919,59521.0,59520.0,0.91998289]
[1617340634164,2.7181919,59521.0,59520.0,0.86970289]
[1617340634362,2.4781919,59521.0,59520.0,0.86970289]
[1617340634785,2.3181919,59521.0,59520.0,0.86970289]
[1617340634984,1.8181919,59521.0,59520.0,0.86948289]
[1617340635383,1.9741919,59521.0,59520.0,0.86948289]
[1617340635982,2.2141919,59521.0,59520.0,0.86948289]
[1617340636981,2.61413564,59521.0,59520.0,0.86948289]
[1617340637413,2.61413564,59521.0,59520.0,0.87697283]
[1617340637614,2.2141919,59521.0,59520.0,0.87697283]
[1617340639013,2.61413564,59521.0,59520.0,0.87697283]
[1617340639619,2.2141919,59521.0,59520.0,0.87697283]
[1617340639816,2.61413564,59521.0,59520.0,0.87697283]
[1617340640646,2.63167487,59521.0,59520.0,0.87697283]
[1617340641452,2.93167487,59521.0,59520.0,0.87697283]
[1617340642893,2.03167487,59521.0,59520.0,0.87697283]
[1617340643090,1.63173113,59521.0,59520.0,0.87697283]
[1617340643293,2.33173113,59521.0,59520.0,0.87697283]
[1617340643491,2.73167487,59521.0,59520.0,0.87697283]
[1617340643694,2.39567487,59521.0,59520.0,0.87197283]
[1617340644090,1.99573113,59521.0,59520.0,0.87197283]
[1617340644893,2.28573113,59521.0,59520.0,0.86197283]
[1617340645493,2.78573113,59521.0,59520.0,0.86197283]
[1617340645691,3.18567487,59521.0,59520.0,0.86197283]
[1617340645892,2.78573113,59521.0,59520.0,0.86197283]
[1617340647091,3.18567487,59521.0,59520.0,0.86197283]
[1617340647292,3.16813564,59521.0,59520.0,0.86197283]
[1617340647931,2.3681919,59521.0,59520.0,0.22202909]
[1617340649129,2.5221919,59521.0,59520.0,0.22202909]
[1617340649728,2.5221919,59521.0,59520.0,0.18786163]
[1617340650131,2.8221919,59521.0,59520.0,0.18786163]
[1617340650533,3.14376161,59521.0,59520.0,0.18786163]
[1617340650933,3.38272428,59521.0,59520.0,0.18786163]
[1617340651132,3.22876161,59521.0,59520.0,0.18786163]
[1617340651333,3.38275141,59521.0,59520.0,0.18786163]
[1617340651931,3.38275141,59521.0,59520.0,0.18886163]
[1617340652935,3.08275141,59521.0,59520.0,0.18886163]
[1617340653189,2.72476161,59521.0,59520.0,0.18886163]
[1617340653381,2.4031919,59521.0,59520.0,0.18886163]
[1617340653780,2.5621919,59521.0,59520.0,0.18886163]
[1617340653979,2.4031919,59521.0,59520.0,0.18886163]
[1617340654180,2.5651919,59521.0,59520.0,0.18886163]
[1617340654378,2.8651919,59521.0,59520.0,0.18886163]
[1617340654781,3.34087241,59521.0,59520.0,0.18886163]
[1617340655990,3.17887241,59521.0,59520.0,0.18886163]
[1617340656187,3.17887241,59521.0,59520.0,0.1851937]
[1617340656787,2.87887241,59521.0,59520.0,0.1851937]
[1617340657187,2.5573027,59521.0,59520.0,0.1851937]
[1617340657671,2.4031919,59521.0,59520.0,0.1851937]
[1617340658069,2.8621919,59521.0,59520.0,0.1851937]
[1617340658502,3.01644606,59521.0,59520.0,0.1851937]
[1617340658699,3.5532999,59521.0,59520.0,0.1851937]
[1617340658902,3.79233678,59521.0,59520.0,0.1851937]
[1617340659099,3.82741645,59521.0,59520.0,0.1851937]
[1617340659499,3.98277682,59521.0,59520.0,0.1851937]
[1617340660298,3.94769715,59521.0,59520.0,0.1851937]
[1617340660503,3.78869715,59521.0,59520.0,0.1851937]
[1617340660900,3.48869715,59521.0,59520.0,0.1851937]
[1617340661117,3.33333678,59521.0,59520.0,0.1851937]
[1617340662316,3.17909329,59521.0,59520.0,0.1851937]
[1617340662515,3.63324474,59521.0,59520.0,0.1851937]
[1617340663516,3.84853426,59521.0,59520.0,0.1851937]
[1617340665346,3.78860426,59521.0,59520.0,0.1851937]
[1617340665545,3.78860426,59521.0,59520.0,0.1801937]
[1617340667172,3.63324474,59521.0,59520.0,0.1801937]
[1617340667370,3.79724474,59521.0,59520.0,0.1801937]
[1617340667773,4.11881445,59521.0,59520.0,0.1801937]
[1617340667971,4.59086445,59521.0,59520.0,0.1801937]
[1617340668174,4.64555445,59521.0,59520.0,0.1801937]
[1617340668573,4.74555445,59521.0,59520.0,0.1801937]
[1617340669188,4.90075801,59521.0,59520.0,0.1801937]
[1617340669389,4.90075801,59521.0,59520.0,0.01194559]
[1617340669589,4.89075801,59521.0,59520.0,0.01194559]
[1617340669789,4.89075801,59521.0,59496.0,0.03]
[1617340669995,0.05818617,59508.0,59500.0,0.002]
[1617340670199,0.03879078,59502.0,59496.0,0.55424]
[1617340670395,0.03879433,59503.0,59501.0,0.387307]
[1617340670591,0.08479339,59502.0,59501.0,0.387307]
[1617340670787,0.08479339,59502.0,59501.0,1.031547]
[1617340671189,0.08479339,59502.0,59501.0,0.891547]
[1617340673101,0.08479339,59502.0,59501.0,0.891327]
[1617340673503,0.08479339,59502.0,59501.0,1.036327]
[1617340674742,0.08479339,59502.0,59501.0,1.031327]
[1617340675343,0.08479339,59502.0,59501.0,0.886327]
[1617340675753,0.12358089,59502.0,59501.0,0.50424]
[1617340675955,1.28102789,59502.0,59501.0,0.50424]
[1617340676157,1.24224039,59502.0,59501.0,0.50424]
[1617340676554,2.06536449,59502.0,59501.0,0.50424]
[1617340676782,2.11638787,59502.0,59501.0,0.4542591]
[1617340677371,2.43795758,59502.0,59501.0,0.4542591]
[1617340677568,2.52295758,59502.0,59501.0,0.4542591]
[1617340677768,2.98295758,59502.0,59501.0,0.4542591]
[1617340678566,2.98295758,59502.0,59501.0,0.4474711]
[1617340679167,2.98295758,59502.0,59501.0,0.4384191]
[1617340679397,3.97795758,59502.0,59501.0,0.4384191]
[1617340679602,3.1377988,59502.0,59501.0,0.4384191]
[1617340679797,3.05300541,59502.0,59501.0,0.3526226]
[1617340679997,2.91570999,59502.0,59501.0,0.3526226]
[1617340680198,2.7705439,59502.0,59501.0,0.3526226]
[1617340680403,2.45570999,59502.0,59501.0,0.3526226]
[1617340680804,3.00770999,59502.0,59501.0,0.33974069]
[1617340681402,3.00770999,59502.0,59501.0,0.31096155]
[1617340682220,3.30770999,59502.0,59501.0,0.31096155]
[1617340683623,3.30770999,59502.0,59501.0,0.30596155]
[1617340683822,3.30770999,59502.0,59501.0,0.31345388]
[1617340684027,2.99016419,59502.0,59501.0,0.31345388]
[1617340684644,1.93816419,59502.0,59501.0,0.31345388]
[1617340685246,2.23816419,59502.0,59501.0,0.31345388]
[1617340685848,2.73816419,59502.0,59501.0,0.31345388]
[1617340686453,2.89116419,59502.0,59501.0,0.31345388]
[1617340687537,2.73816419,59502.0,59501.0,0.31345388]
[1617340688933,2.62901671,59502.0,59501.0,0.31345388]
[1617340690727,2.62901671,59502.0,59501.0,0.31323388]
[1617340691729,2.79401671,59502.0,59501.0,0.31323388]
[1617340692133,2.81156242,59502.0,59501.0,0.31323388]
[1617340693731,3.80656242,59502.0,59501.0,0.00749233]
[1617340693942,3.80656242,59502.0,59462.0,0.0306]
[1617340693943,0.46,59472.0,59462.0,0.0306]
[1617340694152,0.46,59472.0,59459.0,0.00042]
[1617340694153,0.16,59462.0,59459.0,0.00042]
[1617340694347,0.70901671,59461.0,59459.0,0.00042]
[1617340694545,0.98063536,59460.0,59459.0,0.50497]
[1617340694739,0.98063536,59460.0,59459.0,0.164281]
[1617340694740,2.81945507,59460.0,59459.0,0.164281]
[1617340694941,2.72075876,59460.0,59452.0,0.00042]
[1617340695140,2.72075876,59460.0,59452.0,0.0002]
[1617340695359,2.72075876,59460.0,59435.0,0.00062]
[1617340695360,0.5,59455.0,59435.0,0.00062]
[1617340695549,0.38892877,59453.0,59452.0,0.39749583]
[1617340695749,0.25261,59440.0,59439.0,0.03]
[1617340695953,0.32156971,59439.0,59429.0,0.04084]
[1617340696148,0.39060024,59437.0,59429.0,0.04084]
[1617340696348,0.32156971,59436.0,59429.0,0.04084]
[1617340696549,0.38606807,59436.0,59433.0,0.50477]
[1617340696747,0.32156971,59435.0,59433.0,0.50477]
[1617340696947,0.31656971,59436.0,59433.0,0.50477]
[1617340697145,0.89086807,59434.0,59433.0,0.50477]
[1617340697343,1.26706136,59434.0,59433.0,0.50477]
[1617340697543,1.202563,59434.0,59433.0,0.50477]
[1617340697771,1.042363,59434.0,59433.0,0.50477]
[1617340697974,1.14686136,59434.0,59433.0,0.50477]
[1617340698369,1.082363,59434.0,59433.0,0.50477]
[1617340698573,1.08331339,59434.0,59433.0,0.50477]
[1617340698771,1.14781175,59434.0,59433.0,0.50477]
[1617340698971,1.30686136,59434.0,59433.0,0.50477]
[1617340699173,1.17811348,59434.0,59433.0,0.50477]
[1617340699372,1.24166136,59434.0,59433.0,0.50477]
[1617340699574,1.24261186,59434.0,59433.0,0.50477]
[1617340699972,1.24146136,59434.0,59433.0,0.50477]
[1617340700173,1.40240924,59434.0,59433.0,0.50477]
[1617340700401,1.40146136,59434.0,59433.0,0.50477]
[1617340700800,1.40126136,59434.0,59433.0,0.50477]
[1617340701399,1.337163,59434.0,59433.0,0.50477]
[1617340701601,1.192163,59434.0,59433.0,0.50497]
[1617340702695,1.50853271,59434.0,59433.0,0.50497]
[1617340702898,0.10691271,59435.0,59434.0,3.12]
[1617340703156,0.5081,59460.0,59435.0,4.76326936]
[1617340703355,0.06125076,59471.0,59458.0,3.12]
[1617340703553,0.177,59470.0,59459.0,0.57389014]
[1617340703755,0.177,59470.0,59462.0,0.002]
[1617340703946,0.177,59470.0,59465.0,0.15160712]
[1617340704147,0.01,59470.0,59467.0,0.387482]
[1617340704357,0.01,59470.0,59469.0,0.71351466]
[1617340704557,0.72,59470.0,59469.0,1.074306]
[1617340704758,1.107482,59470.0,59469.0,0.50477]